bitfinex/quotes_ETHUSD_20250629
["timestamp","ask_amount","ask_price","bid_price","bid_amount"]
[1751179740208,20.68961963,2434.5,2434.4,0.7782]
[1751179740419,26.35608555,2434.5,2434.4,0.7782]
[1751179743206,15.66646592,2434.5,2434.4,0.7782]
[1751179743400,10.0,2434.5,2434.4,0.7782]
[1751179743707,16.582,2434.5,2434.4,0.7782]
[1751179746741,10.0,2434.6,2434.4,1.2672287]
[1751179746929,30.0,2435.0,2434.5,0.8057]
[1751179747131,18.02252161,2434.9,2434.5,0.8057]
[1751179747332,10.0,2434.6,2434.5,0.8057]
[1751179747524,10.0,2434.7,2434.5,0.8057]
[1751179747726,10.0,2434.7,2434.6,0.8057]
[1751179748547,14.10728221,2434.7,2434.6,0.8057]
[1751179748859,10.0,2434.7,2434.6,0.8057]
[1751179754837,4.10728221,2434.7,2434.6,0.8057]
[1751179755953,9.77374813,2434.7,2434.6,0.8057]
[1751179759462,19.77374813,2434.7,2434.6,0.8057]
[1751179761515,4.31231056,2434.6,2434.4,0.7886]
[1751179761734,0.2048,2434.5,2434.4,0.7886]
[1751179764269,0.2048,2434.5,2434.4,1.33367219]
[1751179774674,0.2048,2434.5,2434.4,0.7886]
[1751179784282,0.20165193,2434.5,2434.4,0.7886]
[1751179797894,0.20165193,2434.5,2434.4,0.002]
[1751179800610,4.30927156,2434.5,2434.4,0.002]
[1751179800812,0.20165193,2434.5,2434.4,0.002]
[1751179801601,4.30927156,2434.5,2434.4,0.002]
[1751179803405,0.20165193,2434.5,2434.4,0.002]
[1751179817457,4.30927156,2434.5,2434.4,0.002]
[1751179818667,9.97573748,2434.5,2434.4,0.002]
[1751179823471,19.97573748,2434.5,2434.4,0.002]
[1751179824544,14.30927156,2434.5,2434.4,0.002]
[1751179833589,44.30927156,2434.5,2434.4,0.002]
[1751179841686,14.30927156,2434.5,2434.4,0.002]
[1751179841885,44.30927156,2434.5,2434.4,0.002]
[1751179859757,22.55927156,2434.5,2434.4,0.002]
[1751179861463,14.30927156,2434.5,2434.4,0.002]
[1751179861763,22.55927156,2434.5,2434.4,0.002]
[1751179866076,14.30927156,2434.5,2434.4,0.002]
[1751179866276,22.55927156,2434.5,2434.4,0.002]
[1751179866875,14.30927156,2434.5,2434.4,0.002]
[1751179867044,22.55927156,2434.5,2434.4,0.002]
[1751179884009,14.30927156,2434.5,2434.4,0.002]
[1751179884214,22.55827156,2434.5,2434.4,0.002]
[1751179900319,14.30927156,2434.5,2434.4,0.002]
[1751179900519,28.22473748,2434.5,2434.4,0.002]
[1751179900712,19.97573748,2434.5,2434.4,0.002]
[1751179900914,28.22473748,2434.5,2434.4,0.002]
[1751179903023,19.97573748,2434.5,2434.4,0.002]
[1751179903197,28.22473748,2434.5,2434.4,0.002]
[1751179903629,19.97573748,2434.5,2434.4,0.002]
[1751179903818,28.22473748,2434.5,2434.4,0.002]
[1751179904638,19.97573748,2434.5,2434.4,0.002]
[1751179904844,26.55773748,2434.5,2434.4,0.002]
[1751179905744,10.20165193,2434.5,2434.4,0.002]
[1751179905925,10.20165193,2434.5,2434.4,0.8133]
[1751179906242,10.20165193,2434.5,2434.4,1.30583456]
[1751179907910,0.20165193,2434.5,2434.4,1.30583456]
[1751179910159,0.20165193,2434.5,2434.4,5.41362292]
[1751179910309,0.20165193,2434.5,2434.4,1.30583456]
[1751179921774,0.20165193,2434.5,2434.4,5.96362292]
[1751179921963,0.2048,2434.7,2434.5,0.7919]
[1751179922169,10.2048,2434.7,2434.5,0.7919]
[1751179923257,10.2048,2434.7,2434.5,1.33153066]
[1751179928878,14.31210257,2434.7,2434.5,1.33153066]
[1751179929186,14.31210257,2434.7,2434.5,0.7919]
[1751179929187,19.97856849,2434.7,2434.5,0.7919]
[1751179936396,15.87126592,2434.7,2434.5,0.7919]
[1751179937088,0.2048,2434.7,2434.5,0.7919]
[1751179937290,0.2048,2434.7,2434.5,4.89947613]
[1751179937491,0.2048,2434.8,2434.6,4.10745091]
[1751179937662,0.2048,2434.8,2434.7,1.16884509]
[1751179945501,0.2048,2434.8,2434.7,0.7581]
[1751179950935,10.2048,2434.8,2434.7,0.7581]
[1751179952234,10.2048,2434.8,2434.5,4.90603775]
[1751179952630,10.2048,2434.8,2434.5,0.7985]
[1751179953353,14.3119168,2434.8,2434.5,0.7985]
[1751179953500,10.2048,2434.8,2434.5,0.7985]
[1751179959145,14.31192674,2434.8,2434.5,0.7985]
[1751179959437,14.31192674,2434.8,2434.5,1.35926024]
[1751179970046,14.31192674,2434.8,2434.5,0.56076024]
[1751179972850,14.31192674,2434.8,2434.5,0.55]
[1751179978565,10.2048,2434.8,2434.5,0.55]
[1751179978856,14.31193983,2434.8,2434.4,4.80712014]
[1751179985674,10.2048,2434.8,2434.4,4.80712014]
[1751179990883,10.2048,2434.8,2434.5,4.10760256]
[1751179997780,0.2048,2434.8,2434.4,0.69933456]
[1751179998075,14.10634026,2435.3,2434.8,0.55]
[1751179998267,0.2048,2435.1,2434.9,4.10693392]
[1751179998673,0.2048,2435.1,2434.8,4.65703693]
[1751179998983,0.2048,2435.1,2434.8,0.55]
[1751179999277,0.2048,2435.1,2434.8,4.65710829]
[1751180001358,0.2048,2435.1,2434.8,6.28717692]
[1751180002079,0.2048,2435.1,2434.8,2.18006863]
[1751180002286,0.2048,2435.1,2434.9,4.10688317]
[1751180003897,0.2048,2435.1,2434.8,4.6570352]
[1751180005585,0.2048,2435.1,2434.9,4.10692833]
[1751180008892,0.2048,2435.1,2434.8,4.65703182]
[1751180014700,0.2048,2435.1,2434.9,4.10694418]
[1751180016395,0.2048,2435.1,2434.8,4.6570276]
[1751180016692,0.2048,2435.1,2434.8,6.45377004]
[1751180019197,0.2048,2435.1,2434.9,4.1069367]
[1751180021198,0.2048,2435.1,2434.8,6.45376355]
[1751180027419,0.2048,2435.1,2434.9,4.10694105]
[1751180029518,0.2048,2435.1,2435.0,4.65677618]
[1751180029729,0.2048,2435.3,2435.1,4.10657133]
[1751180030590,0.2048,2435.3,2435.2,4.10643889]
[1751180031386,0.2048,2435.3,2435.1,4.88901454]
[1751180037238,0.2048,2435.3,2435.1,0.7825]
[1751180039134,0.2048,2435.3,2435.1,4.88908997]
[1751180046564,0.2048,2435.3,2435.1,0.7825]
[1751180046950,0.2048,2435.3,2435.1,4.88910669]
[1751180048068,0.2048,2435.3,2435.1,0.7825]
[1751180048220,0.2048,2435.3,2435.0,5.95378525]
[1751180049653,0.2048,2435.3,2435.1,1.75938608]
[1751180053151,0.2048,2435.3,2435.0,4.10668915]
[1751180054754,0.2048,2435.3,2435.1,4.10658879]
[1751180055554,0.2048,2435.3,2435.2,4.10643889]
[1751180056160,0.2048,2435.3,2435.1,4.10652927]
[1751180056562,0.2048,2435.3,2435.2,4.10643889]
[1751180058164,0.2048,2435.3,2435.1,4.10650774]
[1751180058369,0.2048,2435.3,2435.1,5.68115028]
[1751180070477,0.2048,2435.3,2435.2,4.10643889]
[1751180072181,0.2048,2435.3,2435.2,4.65643889]
[1751180072359,0.001,2435.5,2435.3,4.10625399]
[1751180073175,0.001,2435.5,2435.3,0.55]
[1751180073349,0.001,2435.5,2435.4,0.52063614]
[1751180073548,0.001,2435.5,2435.4,4.6267378]
[1751180074581,0.001,2435.5,2435.4,0.52063614]
[1751180082285,0.001,2435.5,2435.3,4.10620158]
[1751180082584,0.001,2435.5,2435.3,0.55]
[1751180085388,0.001,2435.5,2435.3,4.65626241]
[1751180088871,0.001,2435.5,2435.4,4.10610166]
[1751180089072,0.001,2435.5,2435.3,4.65617178]
[1751180089370,0.001,2435.5,2435.3,6.44857924]
[1751180098699,0.001,2435.5,2435.4,4.10610166]
[1751180099205,0.001,2435.5,2435.3,6.4485795]
[1751180099390,0.001,2435.5,2435.3,2.34240746]
[1751180099714,0.001,2435.5,2435.3,6.44858687]
[1751180102102,0.001,2435.5,2435.4,4.10610166]
[1751180103704,0.001,2435.5,2435.4,12.94639387]
[1751180165172,0.001,2435.5,2435.4,13.72779387]
[1751180165338,0.001,2435.5,2435.4,19.59905979]
[1751180167558,0.001,2435.5,2435.4,13.93259387]
[1751180174554,0.001,2435.5,2435.4,19.59905979]
[1751180180782,0.001,2435.5,2435.4,13.93259387]
[1751180184788,5.82726592,2436.1,2435.8,0.55]
[1751180184991,5.82726592,2436.1,2435.9,6.576]
[1751180189184,0.1608,2436.1,2435.9,6.576]
[1751180194806,0.1608,2436.1,2435.9,10.68125742]
[1751180195306,0.1608,2436.1,2435.9,6.576]
[1751180197313,0.1608,2436.1,2435.9,10.68121603]
[1751180200210,0.1608,2436.1,2435.9,6.576]
[1751180201410,0.1608,2436.1,2435.8,4.65538857]
[1751180201716,10.1608,2436.1,2435.9,6.575]
[1751180202316,15.82726592,2436.1,2435.9,6.575]
[1751180205012,0.1608,2436.1,2435.9,6.575]
[1751180205917,5.82726592,2436.1,2435.9,6.575]
[1751180207120,5.82726592,2436.1,2435.8,0.55]
[1751180207306,9.93224645,2436.1,2435.7,0.2048]
[1751180207510,9.93224645,2436.1,2435.7,6.7798]
[1751180208732,4.1051259,2436.0,2435.7,6.7798]
[1751180210922,9.93227331,2436.1,2435.7,6.7798]
[1751180211934,4.10509225,2436.0,2435.7,6.7798]
[1751180212139,9.93227968,2436.1,2435.7,6.7798]
[1751180212721,9.93227996,2436.1,2435.7,6.7798]
[1751180215242,5.82726592,2436.1,2435.7,10.88537985]
[1751180216549,9.93218948,2436.1,2435.7,10.88537985]
[1751180216915,9.93218948,2436.1,2435.7,6.7798]
[1751180219846,9.93218948,2436.1,2435.7,10.8853575]
[1751180220148,9.93218948,2436.1,2435.7,6.7798]
[1751180221155,9.93218948,2436.1,2435.7,10.88539397]
[1751180222054,5.82726592,2436.1,2435.7,10.88539397]
[1751180223355,9.93219243,2436.1,2435.7,10.88539397]
[1751180224859,9.93219243,2436.1,2435.7,6.7798]
[1751180227666,4.10510724,2436.0,2435.7,6.7798]
[1751180227965,9.93228538,2436.1,2435.7,6.7798]
[1751180228462,9.93228538,2436.1,2435.7,10.88538495]
[1751180229663,5.82726592,2436.1,2435.7,10.88538495]
[1751180231298,5.82726592,2436.1,2435.8,0.7503]
[1751180235875,5.82726592,2436.1,2435.8,4.8557007]
[1751180239779,5.82726592,2436.1,2435.8,0.7503]
[1751180242086,5.82726592,2436.1,2435.8,4.85561511]
[1751180242755,5.82726592,2436.1,2435.8,0.7503]
[1751180244789,5.82726592,2436.1,2435.8,4.8557266]
[1751180248890,5.82726592,2436.1,2435.8,0.7503]
[1751180249280,9.93219476,2436.1,2435.8,0.7503]
[1751180266306,4.10511861,2436.0,2435.7,6.7798]
[1751180266485,4.10511861,2436.0,2435.5,6.32185197]
[1751180266486,4.10542737,2435.8,2435.5,0.55]
[1751180266689,4.10542737,2435.8,2435.6,6.575]
[1751180267202,9.97660118,2435.9,2435.6,6.575]
[1751180267570,5.87126592,2435.9,2435.6,6.575]
[1751180268823,0.2048,2435.9,2435.6,10.68072945]
[1751180269004,0.2048,2435.9,2435.7,2.45070025]
[1751180270901,0.2048,2435.9,2435.7,6.55628838]
[1751180271106,14.10483588,2436.2,2435.7,6.55628838]
[1751180271396,0.2048,2436.0,2435.7,6.55628838]
[1751180272492,0.2048,2436.0,2435.8,4.10540163]
[1751180272696,0.2048,2436.0,2435.8,5.84949328]
[1751180272879,0.2048,2436.0,2435.9,0.8285]
[1751180277130,0.2048,2436.0,2435.9,5.48375883]
[1751180277301,10.2048,2436.2,2435.9,0.8285]
[1751180277817,10.2048,2436.2,2435.9,4.93374348]
[1751180278013,10.2048,2436.2,2435.9,6.08754601]
[1751180282622,0.2048,2436.2,2436.0,4.10503487]
[1751180284322,0.2048,2436.2,2435.9,6.08748649]
[1751180287618,0.2048,2436.2,2436.0,4.10508363]
[1751180290534,0.2048,2436.2,2435.9,6.08746877]
[1751180292416,0.2048,2436.2,2435.9,1.98230253]
[1751180292618,0.2048,2436.2,2435.9,0.8285]
[1751180292806,5.87126592,2436.2,2435.9,0.8285]
[1751180297234,5.87126592,2436.2,2435.9,4.93374982]
[1751180298735,5.87126592,2436.2,2436.0,4.1050643]
[1751180298946,10.001,2436.3,2436.0,4.1050643]
[1751180298947,0.001,2436.3,2436.1,5.4522218]
[1751180299230,0.001,2436.3,2436.2,6.38192747]
[1751180300335,0.001,2436.3,2436.2,12.95792747]
[1751180308879,0.001,2436.3,2436.2,13.75602747]
[1751180309044,0.001,2436.3,2436.2,19.42249339]
[1751180309655,0.001,2436.3,2436.2,13.75602747]
[1751180311058,0.001,2436.3,2436.2,19.42249339]
[1751180311479,0.001,2436.5,2436.4,4.65441635]
[1751180311761,0.001,2436.5,2436.4,22.29531849]
[1751180312126,0.001,2436.5,2436.4,16.62885257]
[1751180312328,0.001,2436.5,2436.4,22.29531849]
[1751180313867,0.001,2436.5,2436.4,14.05431849]
[1751180314068,0.001,2436.5,2436.4,22.30231849]
[1751180314765,0.001,2436.5,2436.4,16.63585257]
[1751180314955,0.001,2436.5,2436.4,24.71784471]
[1751180322576,0.001,2436.5,2436.4,34.71784471]
[1751180328082,0.001,2437.1,2437.0,5.43310582]
[1751180328283,0.001,2437.1,2437.0,14.63577033]
[1751180328578,0.001,2437.1,2437.0,14.84057033]
[1751180331057,0.001,2437.1,2437.0,24.63577033]
[1751180331872,0.001,2437.1,2437.0,24.68412412]
[1751180332274,0.001,2437.2,2437.1,15.40743745]
[1751180332486,0.001,2437.2,2437.1,27.50275383]
[1751180332687,0.001,2437.3,2437.2,14.65306909]
[1751180332884,0.001,2437.3,2437.2,21.99426909]
[1751180333300,0.001,2437.3,2437.2,22.04061895]
[1751180337540,0.001,2437.3,2437.2,30.12261109]
[1751180337830,0.001,2437.3,2437.2,34.13593533]
[1751180341126,0.001,2437.3,2437.2,34.34073533]
[1751180341937,0.2060662,2437.3,2437.2,34.34073533]
[1751180343328,0.2060662,2437.3,2437.2,38.66573533]
[1751180343640,0.2060662,2437.3,2437.2,34.34073533]
[1751180344263,0.2060662,2437.3,2437.2,19.12174319]
[1751180344549,0.2060662,2437.3,2437.2,27.37874319]
[1751180344745,0.2060662,2437.3,2437.2,27.92874319]
[1751180345746,0.2060662,2437.3,2437.2,21.34274319]
[1751180345950,0.2060662,2437.3,2437.2,27.17454319]
[1751180347753,0.2060662,2437.3,2437.2,20.58854319]
[1751180347932,0.2060662,2437.3,2437.2,27.17454319]
[1751180351161,0.2060662,2437.3,2437.2,17.17454319]
[1751180351357,0.2060662,2437.3,2437.2,10.58854319]
[1751180351574,0.2060662,2437.3,2437.2,17.17354319]
[1751180353751,0.2060662,2437.3,2437.2,17.17454319]
[1751180354142,0.2060662,2437.3,2437.2,10.58854319]
[1751180354343,0.2060662,2437.3,2437.2,17.17454319]
[1751180354847,0.2060662,2437.3,2437.2,13.16121895]
[1751180356299,0.2060662,2437.3,2437.2,6.57521895]
[1751180356483,0.2060662,2437.3,2437.2,13.16121895]
[1751180360188,0.2060662,2437.3,2437.2,6.57521895]
[1751180360487,0.2060662,2437.3,2437.2,13.16121895]
[1751180368321,0.2060662,2437.3,2437.2,13.16021895]
[1751180372824,0.2060662,2437.3,2437.2,14.88656419]
[1751180389453,0.2060662,2437.3,2437.2,8.30156419]
[1751180389630,0.2060662,2437.3,2437.2,14.88456419]
[1751180390352,0.2060662,2437.3,2437.2,13.15821895]
[1751180390650,0.2060662,2437.3,2437.2,2.47214986]
[1751180390951,0.2060662,2437.3,2437.2,8.30134986]
[1751180391652,0.2060662,2437.3,2437.2,1.71734986]
[1751180391852,0.2060662,2437.3,2437.2,8.30134986]
[1751180393860,0.2060662,2437.3,2437.2,8.85134986]
[1751180394241,0.2060662,2437.3,2437.2,9.05614986]
[1751180394661,0.2060662,2437.3,2437.2,13.15921895]
[1751180395460,0.2060662,2437.3,2437.2,9.05614986]
[1751180396972,0.2060662,2437.3,2437.2,13.15921895]
[1751180397738,0.2060662,2437.3,2437.2,14.16008608]
[1751180401770,0.2060662,2437.3,2437.2,14.94018608]
[1751180427866,0.2060662,2437.3,2437.2,24.94018608]
[1751180429846,0.2058,2438.2,2438.0,4.10163992]
[1751180430047,0.2058,2438.2,2438.0,10.68363992]
[1751180432368,0.2058,2438.2,2438.0,4.10163992]
[1751180437341,0.2058,2438.2,2437.8,6.7858]
[1751180437488,0.2058,2438.2,2437.7,0.55]
[1751180437489,8.08199214,2437.9,2437.7,0.55]
[1751180437820,8.08199214,2437.9,2437.5,0.2048]
[1751180437821,12.38879588,2437.9,2437.5,0.2048]
[1751180438018,8.08199214,2437.7,2437.2,0.04634986]
[1751180438220,18.254,2438.1,2437.2,0.04634986]
[1751180438221,4.30753767,2437.4,2437.2,0.04634986]
[1751180438417,0.2048,2437.4,2437.2,0.04634986]
[1751180439484,10.0,2437.7,2437.2,0.04634986]
[1751180439702,4.30719677,2437.6,2437.2,0.04634986]
[1751180440823,0.2048,2437.6,2437.2,0.04634986]
[1751180441117,0.2048,2437.6,2437.3,0.55]
[1751180441510,10.2048,2437.6,2437.3,0.55]
[1751180441687,0.2048,2437.6,2437.3,4.65287967]
[1751180442024,0.2048,2437.6,2437.3,0.55]
[1751180445125,4.10265129,2437.5,2437.3,0.55]
[1751180445297,4.30725125,2437.6,2437.3,0.55]
[1751180445911,0.2048,2437.6,2437.3,0.55]
[1751180447428,4.30732144,2437.6,2437.3,0.55]
[1751180448930,0.2048,2437.6,2437.3,0.55]
[1751180450131,4.30723949,2437.6,2437.3,0.55]
[1751180450919,12.18444519,2437.6,2437.2,0.04634986]
[1751180451126,4.30755327,2437.4,2437.2,0.04634986]
[1751180451732,0.2048,2437.4,2437.2,0.04634986]
[1751180453232,4.30761329,2437.4,2437.2,0.04634986]
[1751180453938,0.2048,2437.4,2437.2,0.04634986]
[1751180454132,4.30761078,2437.4,2437.2,0.04634986]
[1751180455645,4.10290075,2437.3,2437.2,0.04634986]
[1751180456319,4.30770075,2437.3,2437.2,0.04634986]
[1751180458864,14.30770075,2437.3,2437.2,0.04634986]
[1751180465671,20.89770075,2437.3,2437.2,0.04634986]
[1751180466972,14.30770075,2437.3,2437.2,0.04634986]
[1751180467351,20.89670075,2437.3,2437.2,0.04634986]
[1751180468255,16.7938,2437.3,2437.2,0.04634986]
[1751180468455,20.89670075,2437.3,2437.2,0.04634986]
[1751180468687,10.2048,2437.3,2437.2,0.04634986]
[1751180469079,16.7948,2437.3,2437.2,0.04634986]
[1751180469266,10.2048,2437.3,2437.2,0.04634986]
[1751180469468,16.7938,2437.3,2437.2,0.04634986]
[1751180469658,20.89670075,2437.3,2437.2,0.04634986]
[1751180470188,16.7938,2437.3,2437.2,0.04634986]
[1751180471390,10.2048,2437.3,2437.2,0.04634986]
[1751180471593,16.7938,2437.3,2437.2,0.04634986]
[1751180473196,20.89670075,2437.3,2437.2,0.04634986]
[1751180473793,20.89520075,2437.3,2437.2,0.04634986]
[1751180476360,14.30620075,2437.3,2437.2,0.04634986]
[1751180476562,20.89420075,2437.3,2437.2,0.04634986]
[1751180478285,28.97619289,2437.3,2437.2,0.04634986]
[1751180482201,20.89420075,2437.3,2437.2,0.04634986]
[1751180484898,28.97619289,2437.3,2437.2,0.04634986]
[1751180496117,10.2033,2437.3,2437.2,0.04634986]
[1751180496512,16.7893,2437.3,2437.2,0.04634986]
[1751180496713,10.2033,2437.3,2437.2,0.04634986]
[1751180496908,10.2033,2437.3,2437.2,0.83254986]
[1751180496909,16.588,2437.3,2437.2,0.83254986]
[1751180498844,10.0,2437.3,2437.2,0.83254986]
[1751180502417,6.7928,2437.4,2437.2,0.83254986]
[1751180503138,0.2048,2437.4,2437.2,0.83254986]
[1751180504451,4.30753346,2437.4,2437.2,0.04634986]
[1751180509324,10.89453346,2437.4,2437.2,0.04634986]
[1751180509932,4.30753346,2437.4,2437.2,0.04634986]
[1751180510262,10.89353346,2437.4,2437.2,0.04634986]
[1751180511667,6.7908,2437.4,2437.2,0.04634986]
[1751180512638,0.2048,2437.4,2437.2,0.04634986]
[1751180512839,6.7908,2437.4,2437.2,0.04634986]
[1751180513474,10.89354465,2437.4,2437.2,0.04634986]
[1751180513676,6.7908,2437.4,2437.2,0.04634986]
[1751180514674,0.2048,2437.4,2437.2,0.04634986]
[1751180514850,6.7908,2437.4,2437.2,0.04634986]
[1751180515767,0.2048,2437.4,2437.2,0.04634986]
[1751180515937,6.7898,2437.4,2437.2,0.04634986]
[1751180516668,10.89253466,2437.4,2437.2,0.04634986]
[1751180518668,5.65713247,2437.3,2437.2,0.04634986]
[1751180518968,0.2048,2437.4,2437.2,0.04634986]
[1751180519167,6.7898,2437.4,2437.2,0.04634986]
[1751180519589,10.2048,2437.4,2437.2,0.04634986]
[1751180519890,16.7898,2437.4,2437.2,0.04634986]
[1751180520493,5.65713247,2437.3,2437.2,0.04634986]
[1751180520659,20.89257336,2437.4,2437.2,0.04634986]
[1751180520861,16.7898,2437.4,2437.2,0.04634986]
[1751180523592,20.89253906,2437.4,2437.2,0.04634986]
[1751180524799,16.7898,2437.4,2437.2,0.04634986]
[1751180532737,10.0,2437.6,2437.3,0.8246]
[1751180533031,6.7888,2437.6,2437.3,4.92740571]
[1751180533701,10.0,2437.5,2437.3,4.92740571]
[1751180535897,0.2048,2437.6,2437.3,4.92740571]
[1751180536231,10.0,2437.5,2437.3,4.92740571]
[1751180536592,16.7888,2437.6,2437.3,4.92740571]
[1751180537825,10.2048,2437.6,2437.3,4.92740571]
[1751180538026,16.7878,2437.6,2437.3,4.92740571]
[1751180538230,16.7878,2437.6,2437.3,0.8246]
[1751180541031,16.7878,2437.6,2437.3,4.92739606]
[1751180541334,16.7878,2437.6,2437.3,4.92741479]
[1751180544854,16.7878,2437.6,2437.4,4.102724]
[1751180545032,0.2048,2437.6,2437.4,4.102724]
[1751180545233,0.2048,2437.6,2437.3,4.92740794]
[1751180546154,0.2048,2437.6,2437.4,4.10271534]
[1751180548238,22.23736287,2437.7,2437.4,4.10271534]
[1751180549451,15.65536287,2437.7,2437.4,4.10271534]
[1751180549654,10.0,2438.0,2437.7,4.8768275]
[1751180549859,6.581,2437.9,2437.7,4.8768275]
[1751180550166,10.2048,2438.0,2437.7,4.8768275]
[1751180550456,16.7868,2438.0,2437.7,4.8768275]
[1751180551036,10.2048,2438.0,2437.7,4.8768275]
[1751180551290,0.2048,2438.0,2437.8,4.10204433]
[1751180551567,6.7888,2438.2,2438.0,4.10163265]
[1751180552868,6.7888,2438.2,2437.9,4.92710992]
[1751180553265,0.2058,2438.2,2438.0,4.10172112]
[1751180553665,0.2058,2438.2,2437.9,0.8253]
[1751180553873,0.2058,2438.2,2437.9,1.43035647]
[1751180554074,0.2058,2438.2,2438.0,4.10171229]
[1751180558980,0.001,2438.2,2438.1,0.55]
[1751180562560,8.07603719,2438.2,2438.0,0.2048]
[1751180562760,8.07603719,2438.2,2437.5,0.778]
[1751180562761,10.0,2438.1,2437.5,0.778]
[1751180562987,0.2048,2437.9,2437.5,4.88045215]
[1751180563149,0.2048,2437.9,2437.6,4.1023639]
[1751180563356,0.2048,2437.9,2437.5,4.88048988]
[1751180564402,0.2048,2437.9,2437.6,4.10236918]
[1751180568176,0.2048,2437.9,2437.5,0.778]
[1751180568177,0.2048,2437.9,2437.5,4.88047233]
[1751180568376,0.2048,2437.9,2437.6,4.10235531]
[1751180576317,0.2048,2437.9,2437.5,5.85427205]
[1751180576318,0.2048,2437.9,2437.7,4.10219808]
[1751180578215,10.0,2438.0,2437.8,4.1020245]
[1751180578384,10.2048,2438.0,2437.8,4.1020245]
[1751180580331,10.2048,2438.0,2437.9,4.10189097]
[1751180580538,0.2048,2438.0,2437.8,4.10198684]
[1751180583219,0.2048,2438.0,2437.9,4.10189097]
[1751180584525,0.2048,2438.0,2437.8,4.91857691]
[1751180587708,0.2048,2438.0,2437.9,4.10189097]
[1751180590201,0.2048,2438.0,2437.8,4.91857608]
[1751180590710,0.2048,2438.0,2437.9,4.10189097]
[1751180591025,0.2048,2438.0,2437.8,4.91857256]
[1751180591532,0.2048,2438.0,2437.7,4.65216384]
[1751180591938,0.2048,2438.0,2437.8,4.10204713]
[1751180601451,0.2048,2438.0,2437.7,4.65213628]
[1751180601613,0.2048,2438.0,2437.8,4.1020585]
[1751180604250,0.2048,2438.0,2437.7,4.65214221]
[1751180604452,4.10197751,2437.9,2437.6,0.2048]
[1751180604758,14.30660064,2438.0,2437.6,0.2048]
[1751180605050,14.30660064,2438.0,2437.6,4.30718796]
[1751180605215,10.2048,2438.0,2437.6,4.30718796]
[1751180607162,14.30653814,2438.0,2437.6,4.30718796]
[1751180607667,14.30653814,2438.0,2437.6,0.2048]
[1751180607834,10.2048,2438.0,2437.6,4.30717952]
[1751180608166,14.30654703,2438.0,2437.6,0.2048]
[1751180609159,14.30654703,2438.0,2437.6,4.30717578]
[1751180610165,14.30654703,2438.0,2437.6,0.2048]
[1751180611168,4.10189994,2437.9,2437.6,0.2048]
[1751180611867,4.10189994,2437.9,2437.5,0.55]
[1751180612168,4.30669994,2437.9,2437.5,0.7548]
[1751180612668,5.65481043,2437.8,2437.5,0.7548]
[1751180613470,5.65481043,2437.6,2437.3,0.55]
[1751180613669,5.65481043,2437.6,2437.3,0.7548]
[1751180614781,5.65481043,2437.6,2437.3,4.85768782]
[1751180615553,5.65481043,2437.6,2437.3,0.7548]
[1751180616789,9.75720885,2437.6,2437.3,0.7548]
[1751180619185,4.10263383,2437.5,2437.3,0.2048]
[1751180619491,4.30743383,2437.5,2437.2,1.71834986]
[1751180619701,9.75756424,2437.4,2437.2,0.04634986]
[1751180619886,4.10290075,2437.3,2437.2,0.04634986]
[1751180620290,9.96244081,2437.4,2437.2,0.04634986]
[1751180622416,5.85961043,2437.4,2437.2,0.04634986]
[1751180622619,10.2048,2437.4,2437.2,0.04634986]
[1751180625014,4.3075439,2437.4,2437.2,0.04634986]
[1751180625222,4.10290075,2437.3,2437.2,0.04634986]
[1751180625416,14.10290075,2437.3,2437.2,0.04634986]
[1751180630399,20.68690075,2437.3,2437.2,0.04634986]
[1751180632339,28.7671427,2437.3,2437.2,0.04634986]
[1751180646663,26.34508161,2437.3,2437.2,0.04634986]
[1751180647460,14.10290075,2437.3,2437.2,0.04634986]
[1751180647661,26.34508161,2437.3,2437.2,0.04634986]
[1751180652778,28.7697114,2437.3,2437.2,0.04634986]
[1751180658779,22.1857114,2437.3,2437.2,0.04634986]
[1751180658983,28.7687114,2437.3,2437.2,0.04634986]
[1751180660182,22.1857114,2437.3,2437.2,0.04634986]
[1751180660478,20.68590075,2437.3,2437.2,0.04634986]
[1751180664179,14.10290075,2437.3,2437.2,0.04634986]
[1751180664384,20.68590075,2437.3,2437.2,0.04634986]
[1751180674593,26.34382743,2437.3,2437.2,0.04634986]
[1751180691578,4.10373284,2436.9,2436.5,1.0095]
[1751180691807,5.65792668,2436.7,2436.5,1.0095]
[1751180693923,5.65792668,2436.7,2436.5,5.11373726]
[1751180694529,6.582,2436.8,2436.5,5.11373726]
[1751180694990,6.582,2436.8,2436.5,6.03576899]
[1751180697721,6.582,2436.8,2436.5,1.93153173]
[1751180698095,6.582,2436.8,2436.5,6.03574335]
[1751180698722,5.86272668,2436.9,2436.5,6.03574335]
[1751180698925,6.582,2436.8,2436.5,6.03574335]
[1751180700429,6.582,2436.8,2436.5,1.93153173]
[1751180700800,6.582,2436.8,2436.5,6.03577536]
[1751180704054,5.86272668,2436.9,2436.5,6.03577536]
[1751180704253,6.582,2436.8,2436.5,6.03577536]
[1751180704414,6.582,2436.8,2436.5,1.93153173]
[1751180704752,6.582,2436.8,2436.5,6.03575441]
[1751180709550,6.582,2436.8,2436.5,5.11372268]
[1751180709950,6.582,2436.8,2436.5,1.0095]
[1751180711248,6.582,2436.8,2436.5,5.11372406]
[1751180712650,6.582,2436.8,2436.5,1.0095]
[1751180713247,6.582,2436.8,2436.5,5.1137215]
[1751180717940,6.582,2436.8,2436.5,1.0095]
[1751180720263,0.2048,2436.9,2436.6,4.10398762]
[1751180720425,0.2048,2436.9,2436.7,0.8016]
[1751180720630,10.2048,2436.9,2436.7,4.90539887]
[1751180725963,0.2048,2436.9,2436.7,4.90539887]
[1751180726171,10.2048,2436.9,2436.7,4.90539887]
[1751180729869,10.0,2437.2,2436.8,4.10374261]
[1751180730177,10.0,2436.9,2436.8,4.89174261]
[1751180730533,6.7868,2437.1,2436.9,4.10344696]
[1751180732075,0.2048,2437.1,2436.9,4.10344696]
[1751180732378,6.7868,2437.1,2436.9,4.10344696]
[1751180732674,0.2048,2437.1,2436.9,4.10344696]
[1751180735278,0.2048,2437.1,2436.9,4.10357421]
[1751180745797,0.2048,2437.1,2437.0,4.10340582]
[1751180746455,0.2048,2437.1,2436.9,4.10347788]